bitfinex/quotes_BTCUSD_20250719
["timestamp","ask_amount","ask_price","bid_price","bid_amount"]
[1752912817221,0.97698473,118170.0,118160.0,0.0002]
[1752912817434,1.24319901,118170.0,118160.0,0.0002]
[1752912818079,1.06274435,118170.0,118160.0,0.0002]
[1752912818709,1.24319901,118170.0,118160.0,0.0002]
[1752912819747,1.06274435,118170.0,118160.0,0.0002]
[1752912820163,1.24419901,118170.0,118160.0,0.0002]
[1752912822500,1.81545665,118160.0,118150.0,0.0004]
[1752912822725,1.64362852,118160.0,118150.0,0.0004]
[1752912823218,1.66904052,118160.0,118150.0,0.0004]
[1752912823653,1.12867654,118160.0,118150.0,0.0004]
[1752912823884,1.67009026,118160.0,118150.0,0.0004]
[1752912824352,1.75560054,118160.0,118150.0,0.0004]
[1752912824996,1.6957046,118160.0,118150.0,0.0004]
[1752912827383,1.1957046,118160.0,118150.0,0.0004]
[1752912830738,1.11019432,118160.0,118150.0,0.0004]
[1752912830946,1.07819432,118160.0,118150.0,0.0004]
[1752912833019,1.07819432,118160.0,118150.0,0.00252]
[1752912833229,0.8343403,118160.0,118150.0,0.01892]
[1752912833430,0.8322203,118160.0,118150.0,0.01892]
[1752912833635,0.8322203,118160.0,118150.0,0.03774]
[1752912834132,0.80913884,118160.0,118150.0,0.17518]
[1752912834377,0.56840482,118160.0,118150.0,0.17518]
[1752912834600,0.80913884,118160.0,118150.0,0.17518]
[1752912836565,0.56840482,118160.0,118150.0,0.17518]
[1752912836774,0.80913884,118160.0,118150.0,0.17518]
[1752912837700,0.89489846,118160.0,118150.0,0.17518]
[1752912838645,1.15717248,118160.0,118150.0,0.13748]
[1752912839260,1.14087248,118160.0,118150.0,0.13748]
[1752912839540,1.14087248,118160.0,118150.0,0.13744]
[1752912839758,1.15717248,118160.0,118150.0,0.13744]
[1752912841197,1.15717248,118160.0,118150.0,0.0004]
[1752912841693,1.15717248,118160.0,118150.0,0.1374]
[1752912842502,1.14087248,118160.0,118150.0,0.1374]
[1752912843475,0.56840482,118160.0,118150.0,0.13939]
[1752912843678,0.80913884,118160.0,118150.0,0.15883]
[1752912843883,0.80913884,118160.0,118150.0,0.17453]
[1752912844359,0.80913884,118160.0,118150.0,0.47452999]
[1752912845728,1.05478286,118160.0,118150.0,0.43739999]
[1752912845947,1.14054248,118160.0,118150.0,0.43739999]
[1752912846597,1.15644248,118160.0,118150.0,0.30039999]
[1752912846813,1.15644248,118160.0,118150.0,0.44019999]
[1752912847023,1.15644248,118160.0,118150.0,0.30039999]
[1752912847259,1.15644248,118160.0,118150.0,0.44019999]
[1752912847896,1.15644248,118160.0,118150.0,0.30039999]
[1752912848122,1.17304248,118160.0,118150.0,0.30039999]
[1752912850859,0.69157444,118160.0,118150.0,0.30039999]
[1752912851091,1.17304248,118160.0,118150.0,0.30039999]
[1752912852213,1.18140692,118160.0,118150.0,0.30039999]
[1752912852688,1.18140692,118160.0,118150.0,0.44263999]
[1752912853913,1.18140692,118160.0,118150.0,0.30039999]
[1752912854130,1.18140692,118160.0,118150.0,0.44259999]
[1752912854973,0.69993888,118160.0,118150.0,0.44251999]
[1752912855344,1.18140692,118160.0,118150.0,0.44251999]
[1752912857571,1.18140692,118160.0,118150.0,0.30039999]
[1752912857781,1.18140692,118160.0,118150.0,0.44339999]
[1752912859456,1.32432692,118160.0,118150.0,0.44339999]
[1752912861571,1.18140692,118160.0,118150.0,0.44339999]
[1752912863545,1.32420692,118160.0,118150.0,0.44339999]
[1752912864335,0.84273888,118160.0,118150.0,0.44339999]
[1752912864519,1.32420692,118160.0,118150.0,0.44339999]
[1752912865440,1.32420692,118160.0,118150.0,0.30039999]
[1752912865647,1.4097172,118160.0,118150.0,0.30039999]
[1752912865851,1.42551903,118160.0,118150.0,0.30039999]
[1752912867740,1.4097172,118160.0,118150.0,0.30039999]
[1752912867953,1.425517,118160.0,118150.0,0.30039999]
[1752912870683,1.4255153,118160.0,118150.0,0.30039999]
[1752912876362,0.94404726,118160.0,118150.0,0.30039999]
[1752912876557,1.4255153,118160.0,118150.0,0.30039999]
[1752912876976,1.4089153,118160.0,118150.0,0.30039999]
[1752912877318,1.4245153,118160.0,118150.0,0.30039999]
[1752912878429,1.4245153,118160.0,118130.0,0.0102]
[1752912878430,0.5496103,118140.0,118130.0,0.0102]
[1752912878644,0.87824394,118140.0,118130.0,0.15224]
[1752912878855,0.89404668,118140.0,118130.0,0.15224]
[1752912879060,0.92251268,118140.0,118130.0,0.15224]
[1752912879676,0.92251268,118140.0,118130.0,0.14224]
[1752912879907,0.92251268,118140.0,118130.0,0.0002]
[1752912880119,0.92251268,118140.0,118130.0,0.14216]
[1752912880328,0.90641268,118140.0,118130.0,0.14216]
[1752912882092,0.92151268,118140.0,118130.0,0.14216]
[1752912882561,0.89729305,118140.0,118130.0,0.14216]
[1752912882780,0.55729305,118140.0,118130.0,0.14216]
[1752912882996,0.56575744,118140.0,118130.0,0.14216]
[1752912884201,0.55065744,118140.0,118130.0,0.14216]
[1752912884408,0.56519829,118140.0,118130.0,0.14216]
[1752912885414,0.56519829,118140.0,118130.0,0.0002]
[1752912885860,0.56619829,118140.0,118130.0,0.0002]
[1752912889015,0.92199829,118140.0,118130.0,0.0002]
[1752912891126,0.68126427,118140.0,118130.0,0.0002]
[1752912891280,0.92199829,118140.0,118130.0,0.0002]
[1752912892146,0.93819829,118140.0,118130.0,0.0002]
[1752912893041,0.92199829,118140.0,118130.0,0.0002]
[1752912893248,0.68126427,118140.0,118130.0,0.0002]
[1752912893457,0.92199829,118140.0,118130.0,0.0002]
[1752912894035,0.68126427,118140.0,118130.0,0.0002]
[1752912894237,0.92199829,118140.0,118130.0,0.0002]
[1752912894685,0.89658229,118140.0,118130.0,0.0002]
[1752912895170,0.91278229,118140.0,118130.0,0.0002]
[1752912896639,0.89658229,118140.0,118130.0,0.1408]
[1752912901925,0.91158229,118140.0,118130.0,0.1408]
[1752912902684,0.89658229,118140.0,118130.0,0.1408]
[1752912903103,1.19765661,118140.0,118130.0,0.1408]
[1752912904667,0.55428865,118140.0,118130.0,0.20857651]
[1752912904921,0.91549421,118140.0,118130.0,0.14281]
[1752912905137,0.91244421,118140.0,118130.0,0.17471]
[1752912905330,0.91030421,118140.0,118130.0,0.16167]
[1752912905633,0.54909865,118140.0,118130.0,0.16167]
[1752912905828,1.09090699,118140.0,118130.0,0.15851]
[1752912906086,1.17666661,118140.0,118130.0,0.15851]
[1752912906918,0.99606383,118140.0,118130.0,0.15851]
[1752912907196,0.99606383,118140.0,118130.0,0.16167]
[1752912907651,1.17666661,118140.0,118130.0,0.16167]
[1752912908069,1.17666661,118140.0,118130.0,0.17727]
[1752912908070,0.99606383,118140.0,118130.0,0.17727]
[1752912908294,0.57030421,118140.0,118130.0,0.17727]
[1752912908541,0.1945578,118140.0,118130.0,0.17727]
[1752912908767,0.18721937,118140.0,118130.0,0.33055679]
[1752912908984,0.36782215,118140.0,118130.0,0.33055679]
[1752912909430,0.18721937,118140.0,118130.0,0.33055679]
[1752912909662,0.18721937,118140.0,118130.0,0.26278028]
[1752912909663,0.35935784,118140.0,118130.0,0.26278028]
[1752912910311,0.17875506,118140.0,118130.0,0.26278028]
[1752912910527,0.35935784,118140.0,118130.0,0.26278028]
[1752912910795,0.17875506,118140.0,118130.0,0.27124553]
[1752912911013,0.17875506,118140.0,118130.0,0.44901563]
[1752912911452,0.17875506,118140.0,118130.0,0.4490157]
[1752912911666,0.17875506,118140.0,118130.0,0.4574808]
[1752912913161,0.17875506,118140.0,118130.0,0.43208528]
[1752912913412,0.41940648,118140.0,118130.0,0.26278028]
[1752912914714,0.17875506,118140.0,118130.0,0.26278028]
[1752912915345,0.41940648,118140.0,118130.0,0.26278028]
[1752912915561,0.41940648,118140.0,118130.0,0.27124553]
[1752912915977,0.17875506,118140.0,118130.0,0.26286028]
[1752912916193,0.17875506,118140.0,118130.0,0.29148528]
[1752912916402,0.17029067,118140.0,118130.0,0.29148528]
[1752912916613,0.17029067,118140.0,118130.0,0.43208528]
[1752912916939,0.17029067,118140.0,118130.0,0.12218028]
[1752912917148,0.17029067,118140.0,118130.0,0.26282028]
[1752912917770,0.17029067,118140.0,118130.0,0.26278028]
[1752912918409,0.41094209,118140.0,118130.0,0.26274028]
[1752912919936,0.17029067,118140.0,118130.0,0.26274028]
[1752912920778,0.41094209,118140.0,118130.0,0.26274028]
[1752912924504,0.41094209,118140.0,118130.0,0.12218028]
[1752912924710,0.46896393,118140.0,118130.0,0.24454028]
[1752912925164,0.41296209,118140.0,118130.0,0.22896028]
[1752912925391,0.17231067,118140.0,118130.0,0.22896028]
[1752912925703,0.41296209,118140.0,118130.0,0.22896028]
[1752912925813,0.41296209,118140.0,118130.0,0.24456028]
[1752912926030,0.41094209,118140.0,118130.0,0.10332028]
[1752912926444,0.41094209,118140.0,118130.0,0.24452028]
[1752912926861,0.41094209,118140.0,118130.0,0.10332028]
[1752912927071,0.41094209,118140.0,118130.0,0.24456028]
[1752912927497,0.17231067,118140.0,118130.0,0.01781]
[1752912927709,0.44692294,118140.0,118130.0,0.1414]
[1752912930259,0.53268256,118140.0,118130.0,0.0002]
[1752912930465,0.53268256,118140.0,118130.0,0.14124]
[1752912932056,0.44692294,118140.0,118130.0,0.14124]
[1752912932202,0.44692294,118140.0,118130.0,0.39124]
[1752912938391,0.44692294,118140.0,118130.0,0.3908]
[1752912939007,0.44692294,118140.0,118130.0,0.39056]
[1752912941286,0.44692294,118140.0,118130.0,0.2502]
[1752912941522,0.53268256,118140.0,118130.0,0.39036]
[1752912943077,0.65318772,118140.0,118130.0,0.39032]
[1752912943490,0.20627152,118140.0,118130.0,0.39032]
[1752912943745,0.5674281,118140.0,118130.0,0.39032]
[1752912946316,0.5510281,118140.0,118130.0,0.39244]
[1752912948925,0.18987152,118140.0,118130.0,0.39244]
[1752912949100,0.5510281,118140.0,118130.0,0.39244]
[1752912950286,0.5510281,118140.0,118130.0,0.392]
[1752912950654,0.18987152,118140.0,118130.0,0.392]
[1752912950868,0.5510281,118140.0,118130.0,0.392]
[1752912951477,0.5480081,118140.0,118130.0,0.4082]
[1752912951656,0.5459881,118140.0,118130.0,0.41127]
[1752912951800,0.53144725,118140.0,118130.0,0.51318028]
[1752912955911,0.59857951,118140.0,118130.0,0.51318028]
[1752912956502,0.53144725,118140.0,118130.0,0.51318028]
[1752912956881,0.53144725,118140.0,118130.0,0.49678028]
[1752912958007,0.17029067,118140.0,118130.0,0.49678028]
[1752912958239,0.53144725,118140.0,118130.0,0.49678028]
[1752912958850,0.17029067,118140.0,118130.0,0.49678028]
[1752912959054,0.53144725,118140.0,118130.0,0.49678028]
[1752912960424,0.61720687,118140.0,118130.0,0.49678028]
[1752912960678,0.25605029,118140.0,118130.0,0.49678028]
[1752912960889,0.61720687,118140.0,118130.0,0.49678028]
[1752912961329,0.61720687,118140.0,118130.0,0.49371028]
[1752912962463,0.17029067,118140.0,118130.0,0.49371028]
[1752912962676,0.53144725,118140.0,118130.0,0.49371028]
[1752912963545,0.17029067,118140.0,118130.0,0.49371028]
[1752912963955,0.53144725,118140.0,118130.0,0.49371028]
[1752912965088,0.53144725,118140.0,118130.0,0.35403028]
[1752912965316,0.53144725,118140.0,118130.0,0.49427028]
[1752912965534,0.17029067,118140.0,118130.0,0.49427028]
[1752912965750,0.53144725,118140.0,118130.0,0.49427028]
[1752912968520,0.56643783,118140.0,118130.0,0.47807028]
[1752912968735,0.56838783,118140.0,118130.0,0.47807028]
[1752912969434,0.53339725,118140.0,118130.0,0.47759028]
[1752912970757,0.76295639,118140.0,118130.0,0.2502]
[1752912970971,0.76295639,118140.0,118130.0,0.38988]
[1752912971407,0.22122152,118140.0,118130.0,0.38988]
[1752912971616,0.76295639,118140.0,118130.0,0.38988]
[1752912971857,0.84871601,118140.0,118130.0,0.38988]
[1752912974596,0.84871601,118140.0,118130.0,0.38992]
[1752912978310,0.65223772,118140.0,118130.0,0.38992]
[1752912978518,0.83281601,118140.0,118130.0,0.38992]
[1752912979244,0.65223772,118140.0,118130.0,0.38992]
[1752912981853,0.65223772,118140.0,118130.0,0.2502]
[1752912982051,0.65223772,118140.0,118130.0,0.38952]
[1752912984314,0.63663772,118140.0,118130.0,0.38952]
[1752912988643,0.63369772,118140.0,118130.0,0.39161]
[1752912989505,0.63663772,118140.0,118130.0,0.39161]
[1752912989712,0.27548114,118140.0,118130.0,0.39161]
[1752912989983,0.63663772,118140.0,118130.0,0.39161]
[1752912993210,1.95420116,118140.0,118130.0,0.1886121]
[1752912993429,1.95420116,118140.0,118130.0,1e-08]
[1752912993653,1.99542925,118140.0,118130.0,1e-08]
[1752912993910,0.5488701,118130.0,118120.0,0.00603727]
[1752912994114,0.61402437,118130.0,118120.0,0.00603727]
[1752912994335,0.563426,118120.0,118110.0,0.13904]
[1752912994594,0.58446709,118120.0,118110.0,0.13904]
[1752912994902,0.58446709,118120.0,118110.0,0.13924]
[1752912995122,1.12620196,118120.0,118110.0,0.13924]
[1752912995358,1.21196158,118120.0,118110.0,0.1392]
[1752912995589,1.21196158,118120.0,118110.0,0.1396986]
[1752912996739,1.21296158,118120.0,118110.0,0.1396986]
[1752912997165,1.21396158,118120.0,118110.0,0.1396986]
[1752912997908,1.21396158,118120.0,118110.0,0.0008986]
[1752912998130,1.21396158,118120.0,118110.0,0.1395786]
[1752912998829,1.21396158,118120.0,118110.0,0.1395386]
[1752912999978,1.23937958,118120.0,118110.0,0.1395386]
[1752913000207,1.23937958,118120.0,118110.0,0.1394986]
[1752913002737,0.69764471,118120.0,118110.0,0.1394986]
[1752913002944,1.23937958,118120.0,118110.0,0.0008986]
[1752913003149,1.23937958,118120.0,118110.0,0.1393386]
[1752913008318,0.69764471,118120.0,118110.0,0.1393386]
[1752913008532,1.20786849,118120.0,118110.0,0.1393386]
[1752913014148,0.66613362,118120.0,118110.0,0.1393386]
[1752913014358,1.20786849,118120.0,118110.0,0.1393386]
[1752913014866,1.18245049,118120.0,118110.0,0.1393386]
[1752913017758,1.19822945,118120.0,118110.0,0.1393386]
[1752913018529,0.65649458,118120.0,118110.0,0.1393386]
[1752913018753,1.19822945,118120.0,118110.0,0.1393386]
[1752913020911,0.55010496,118120.0,118110.0,0.1755086]
[1752913021128,0.54094173,118120.0,118110.0,0.26101888]
[1752913021363,0.36036344,118120.0,118110.0,0.26101888]
[1752913021580,0.54094173,118120.0,118110.0,0.26101888]
[1752913023513,0.1882509,118120.0,118110.0,0.43881923]
[1752913023733,0.54094173,118120.0,118110.0,0.26101888]
[1752913025328,0.54098173,118120.0,118110.0,0.26101888]
[1752913027632,0.17982515,118120.0,118110.0,0.26101888]
[1752913027841,0.54098173,118120.0,118110.0,0.26101888]
[1752913030008,0.54098173,118120.0,118110.0,0.25601888]
[1752913030488,0.54098173,118120.0,118110.0,0.22738028]
[1752913030902,0.54312173,118120.0,118110.0,0.23976028]
[1752913031032,0.54098173,118120.0,118110.0,0.23976028]
[1752913031259,0.54098173,118120.0,118110.0,0.24287028]
[1752913031766,0.54098173,118120.0,118110.0,0.10607028]
[1752913032005,0.54098173,118120.0,118110.0,0.10296028]
[1752913032222,0.54098173,118120.0,118110.0,0.23968028]
[1752913033190,0.17982515,118120.0,118110.0,0.23968028]
[1752913033414,0.54098173,118120.0,118110.0,0.23968028]
[1752913038855,0.54098173,118120.0,118110.0,0.24279028]
[1752913039197,0.54098173,118120.0,118110.0,0.10296028]
[1752913039408,0.54098173,118120.0,118110.0,0.23928028]
[1752913043198,0.36040344,118120.0,118110.0,0.23928028]
[1752913043408,0.17982515,118120.0,118110.0,0.24239028]
[1752913043647,0.54098173,118120.0,118110.0,0.24239028]
[1752913045146,0.17982515,118120.0,118110.0,0.23928028]
[1752913045361,0.54098173,118120.0,118110.0,0.23928028]
[1752913045568,0.17982515,118120.0,118110.0,0.23928028]
[1752913045839,0.54098173,118120.0,118110.0,0.23928028]
[1752913046266,0.17982515,118120.0,118110.0,0.23928028]
[1752913046477,0.54098173,118120.0,118110.0,0.23928028]
[1752913047098,0.17982515,118120.0,118110.0,0.23928028]
[1752913047347,0.54098173,118120.0,118110.0,0.23928028]
[1752913048005,0.54098173,118120.0,118110.0,0.24239028]
[1752913048215,0.54098173,118120.0,118110.0,0.25879028]
[1752913048465,0.54312173,118120.0,118110.0,0.23928028]
[1752913048683,0.54312173,118120.0,118110.0,0.22143028]
[1752913048684,0.64731135,118120.0,118110.0,0.22143028]
[1752913049046,0.56155173,118120.0,118110.0,0.22143028]
[1752913049461,0.56155173,118120.0,118110.0,0.22131028]
[1752913049646,0.56155173,118120.0,118110.0,0.08551028]
[1752913049853,0.56155173,118120.0,118110.0,0.22131028]
[1752913050764,0.56155173,118120.0,118100.0,0.30103332]
[1752913050765,0.17780021,118110.0,118100.0,0.30103332]
[1752913050912,0.3605185,118110.0,118100.0,0.5244736]
[1752913052144,0.17994021,118110.0,118100.0,0.5244736]
[1752913052374,0.3605185,118110.0,118100.0,0.5244736]
[1752913053483,0.17994021,118110.0,118100.0,0.5244736]
[1752913053754,0.3605185,118110.0,118100.0,0.5244736]
[1752913056058,0.17994021,118110.0,118100.0,0.5244736]
[1752913056303,0.3605185,118110.0,118100.0,0.5244736]
[1752913057188,0.3605185,118110.0,118100.0,0.5394736]
[1752913057722,0.17994021,118110.0,118100.0,0.5394736]
[1752913057953,0.3583785,118110.0,118100.0,0.5394736]
[1752913058173,0.3583785,118110.0,118100.0,0.5424636]
[1752913058379,0.3603785,118110.0,118100.0,0.5394736]
[1752913058985,0.17980021,118110.0,118100.0,0.5394736]
[1752913059192,0.3603785,118110.0,118100.0,0.5394736]
[1752913060172,0.3583785,118110.0,118100.0,0.5424636]
[1752913060382,0.3583785,118110.0,118100.0,0.5583636]
[1752913061626,0.3583785,118110.0,118100.0,0.5424636]
[1752913062053,0.3583785,118110.0,118100.0,0.5394736]
[1752913063820,0.17780021,118110.0,118100.0,0.5394736]
[1752913064023,0.3583785,118110.0,118100.0,0.5394736]
[1752913064760,0.3583785,118110.0,118100.0,0.4036336]
[1752913064970,0.3583785,118110.0,118100.0,0.5389536]
[1752913065173,0.3583785,118110.0,118100.0,0.5389136]
[1752913065393,0.3583785,118110.0,118100.0,0.5388736]
[1752913068098,0.3583785,118110.0,118100.0,0.4036336]
[1752913068304,0.3583785,118110.0,118100.0,0.5387136]
[1752913070936,0.3583785,118110.0,118100.0,0.5237136]
[1752913071417,0.3603785,118110.0,118100.0,0.5237136]
[1752913072628,0.3583785,118110.0,118100.0,0.5392136]
[1752913072834,0.2059779,118110.0,118100.0,0.75235316]
[1752913073910,0.2059779,118110.0,118100.0,0.76082005]
[1752913074133,0.21444458,118110.0,118100.0,0.76082005]
[1752913074549,0.03386629,118110.0,118100.0,0.75235316]
[1752913075053,0.21444458,118110.0,118100.0,0.75235316]
[1752913075259,0.21444458,118110.0,118100.0,0.83811278]
[1752913078396,0.38377825,118110.0,118100.0,0.82964581]
[1752913078601,0.19804708,118120.0,118110.0,0.2101332]
[1752913078834,0.01746822,118120.0,118110.0,0.45708966]
[1752913079044,0.02593382,118120.0,118110.0,0.46007966]
[1752913079268,0.00053737,118120.0,118110.0,0.67916437]
[1752913079679,0.00053737,118120.0,118110.0,0.49858608]
[1752913080544,0.01746822,118120.0,118110.0,0.49858608]
[1752913080927,0.20651211,118120.0,118110.0,0.49858608]
[1752913081142,0.20751211,118120.0,118110.0,0.49858608]
[1752913081537,0.21597779,118120.0,118110.0,0.49858608]
[1752913081894,0.22544361,118120.0,118110.0,0.49858608]
[1752913082101,0.21697779,118120.0,118110.0,0.49858608]
[1752913082876,0.22544361,118120.0,118110.0,0.49858608]
[1752913085525,0.0363995,118120.0,118110.0,0.49858608]
[1752913085727,0.22495893,118120.0,118110.0,0.49858608]
[1752913085940,0.21649311,118120.0,118110.0,0.49858608]
[1752913086337,0.22495893,118120.0,118110.0,0.49858608]
[1752913086528,0.21649311,118120.0,118110.0,0.49858608]
[1752913087887,0.01898354,118120.0,118110.0,0.49858608]
[1752913088112,0.00205269,118120.0,118110.0,0.67916437]
[1752913088604,0.00205269,118120.0,118110.0,0.49858608]
[1752913088810,0.19109644,118120.0,118110.0,0.49858608]
[1752913089023,0.01051808,118120.0,118110.0,0.49858608]
[1752913089308,0.1910963,118120.0,118110.0,0.49858608]
[1752913089501,0.00205269,118120.0,118110.0,0.49858608]
[1752913089707,0.01051808,118120.0,118110.0,0.49858608]
[1752913089909,0.01898361,118120.0,118110.0,0.49858608]
[1752913090162,0.1995619,118120.0,118110.0,0.49858608]
[1752913091001,0.20802758,118120.0,118110.0,0.49858608]
[1752913091307,0.21649333,118120.0,118110.0,0.49858608]
[1752913091466,0.1995619,118120.0,118110.0,0.49858608]
[1752913091673,0.20802758,118120.0,118110.0,0.49858608]
[1752913092093,0.1995619,118120.0,118110.0,0.49858608]
[1752913092258,0.20802758,118120.0,118110.0,0.49858608]
[1752913092458,0.02744929,118120.0,118110.0,0.49858608]
[1752913092647,0.20802758,118120.0,118110.0,0.49858608]
[1752913092848,0.1995619,118120.0,118110.0,0.49858608]
[1752913093738,0.01898361,118120.0,118110.0,0.49858608]
[1752913093983,0.1995619,118120.0,118110.0,0.49858608]
[1752913094202,0.20802758,118120.0,118110.0,0.49858608]
[1752913095493,0.1995619,118120.0,118110.0,0.49858608]
[1752913096110,0.2080275,118120.0,118110.0,0.49858608]
[1752913098091,0.02744921,118120.0,118110.0,0.49858608]
[1752913098352,0.1995619,118120.0,118110.0,0.49858608]
[1752913098748,0.20802758,118120.0,118110.0,0.49858608]
[1752913098966,0.1995619,118120.0,118110.0,0.49858608]
[1752913099382,0.2080275,118120.0,118110.0,0.49858608]
[1752913099993,0.21649325,118120.0,118110.0,0.49858608]
[1752913100299,0.21649318,118120.0,118110.0,0.49858608]
[1752913100652,0.03591489,118120.0,118110.0,0.49858608]
[1752913100864,0.21649318,118120.0,118110.0,0.49858608]
[1752913101498,0.224959,118120.0,118110.0,0.49858608]
[1752913103806,0.04438071,118120.0,118110.0,0.48258608]
[1752913104017,0.224959,118120.0,118110.0,0.48258608]
[1752913104229,0.2249595,118120.0,118110.0,0.48258608]
[1752913104447,0.21649361,118120.0,118110.0,0.48258608]
[1752913105051,0.21649404,118120.0,118110.0,0.4741199]
[1752913105387,0.03591575,118120.0,118110.0,0.4741199]
[1752913105634,0.20802844,118120.0,118110.0,0.4741199]
[1752913106053,0.20802844,118120.0,118110.0,0.48258622]
[1752913107390,0.20802844,118120.0,118110.0,0.46718622]
[1752913107809,0.20802844,118120.0,118110.0,0.48218622]
[1752913108520,0.37734777,118120.0,118110.0,0.48218622]
[1752913109361,0.37734777,118120.0,118110.0,0.43879705]
[1752913109578,0.58655038,118120.0,118110.0,0.1240167]
[1752913109804,0.76712867,118120.0,118110.0,0.08551028]
[1752913110011,0.58655038,118120.0,118110.0,0.22039028]
[1752913110659,0.58655038,118120.0,118110.0,0.08551028]
[1752913110891,0.58655038,118120.0,118110.0,0.22039028]
[1752913112559,0.2253938,118120.0,118110.0,0.08551028]
[1752913112799,0.58655038,118120.0,118110.0,0.22250695]
[1752913113036,0.58655038,118120.0,118110.0,0.22039028]
[1752913114186,0.2253938,118120.0,118110.0,0.22039028]
[1752913114382,0.58655038,118120.0,118110.0,0.22039028]
[1752913116012,0.2253938,118120.0,118110.0,0.22039028]
[1752913116223,0.58655038,118120.0,118110.0,0.22039028]
[1752913116888,0.57035038,118120.0,118110.0,0.22241028]
[1752913117188,0.20802815,118120.0,118110.0,0.49443671]
[1752913117463,0.21649354,118120.0,118110.0,0.51453942]
[1752913117700,0.20802751,118120.0,118110.0,0.53013942]
[1752913117941,0.22495915,118120.0,118110.0,0.53860567]
[1752913118380,0.21649376,118120.0,118110.0,0.5216731]
[1752913118599,0.21649376,118120.0,118110.0,0.53013935]
[1752913118898,0.21649376,118120.0,118110.0,0.5216731]
[1752913119318,0.21649376,118120.0,118110.0,0.53013942]
[1752913119535,0.22495972,118120.0,118110.0,0.53013942]
[1752913119769,0.21649426,118120.0,118110.0,0.53013942]
[1752913120446,0.21649426,118120.0,118110.0,0.51320671]
[1752913120707,0.20802858,118120.0,118110.0,0.49443679]
[1752913120940,0.21012858,118120.0,118110.0,0.49443679]
[1752913121647,0.37944791,118120.0,118110.0,0.49443679]
[1752913122781,0.37944791,118120.0,118110.0,0.51136964]
[1752913123000,0.02108397,118120.0,118110.0,0.51983596]
[1752913123212,0.20802822,118120.0,118110.0,0.51453928]
[1752913123884,0.20802822,118120.0,118110.0,0.51453921]
[1752913124075,0.20166226,118120.0,118110.0,0.50290296]
[1752913124332,0.20166226,118120.0,118110.0,0.49443657]
[1752913124333,0.21012822,118120.0,118110.0,0.49443657]
[1752913124543,0.21012815,118120.0,118110.0,0.49443657]
[1752913125413,0.21012815,118120.0,118110.0,0.49435657]
[1752913125613,0.21012815,118120.0,118110.0,0.50282296]
[1752913126393,0.21012815,118120.0,118110.0,0.51128928]
[1752913126594,0.02954986,118120.0,118110.0,0.51128928]
[1752913126803,0.21012815,118120.0,118110.0,0.50282296]
[1752913127315,0.21859411,118120.0,118110.0,0.50282296]
[1752913127538,0.21012815,118120.0,118110.0,0.51128928]
[1752913127766,0.21012815,118120.0,118110.0,0.50282296]
[1752913128125,0.21012815,118120.0,118110.0,0.49435657]
[1752913128538,0.37944748,118120.0,118110.0,0.47742357]
[1752913128755,0.37944748,118120.0,118110.0,0.48589011]
[1752913128966,0.37944748,118120.0,118110.0,0.48589025]
[1752913129171,0.39853748,118120.0,118110.0,0.49435686]
[1752913129599,0.57911577,118120.0,118110.0,0.5028234]
[1752913130302,0.57911577,118120.0,118110.0,0.49435686]
[1752913130722,0.57911577,118120.0,118110.0,0.5028234]
[1752913131235,0.57911577,118120.0,118110.0,0.51128986]
[1752913131646,0.57911577,118120.0,118110.0,0.5028234]
[1752913131848,0.57911577,118120.0,118110.0,0.51128986]
[1752913132794,0.4022624,118120.0,118110.0,0.51975625]
[1752913132995,0.04110582,118120.0,118110.0,0.51975625]
[1752913133200,0.4022624,118120.0,118110.0,0.51975625]
[1752913133416,0.4022624,118120.0,118110.0,0.51128986]
[1752913133906,0.3991724,118120.0,118110.0,0.51128986]
[1752913134154,0.3991724,118120.0,118110.0,0.5028234]
[1752913134368,0.3991724,118120.0,118110.0,0.51128986]
[1752913134592,0.3991724,118120.0,118110.0,0.5028234]
[1752913134799,0.3991724,118120.0,118110.0,0.51128986]
[1752913136242,0.3991724,118120.0,118110.0,0.51975625]
[1752913136660,0.03801582,118120.0,118110.0,0.51975589]
[1752913136972,0.3991724,118120.0,118110.0,0.51128957]
[1752913137217,0.3991724,118120.0,118110.0,0.50282318]
[1752913137404,0.3991724,118120.0,118110.0,0.51128957]
[1752913137647,0.21859411,118120.0,118110.0,0.51128957]
[1752913137853,0.21859411,118120.0,118110.0,0.50282318]
[1752913138096,0.21859411,118120.0,118110.0,0.51128957]
[1752913138758,0.3992124,118120.0,118110.0,0.51128957]
[1752913139342,0.3992124,118120.0,118110.0,0.50282318]
[1752913139587,0.3992124,118120.0,118110.0,0.51128957]
[1752913140557,0.38228055,118120.0,118110.0,0.51975589]
[1752913140769,0.21016808,118120.0,118110.0,0.51975517]
[1752913141420,0.21016808,118120.0,118110.0,0.51128899]
[1752913141541,0.21016808,118120.0,118110.0,0.49435642]
[1752913141973,0.21863404,118120.0,118110.0,0.49435642]
[1752913142594,0.21863404,118120.0,118110.0,0.49435679]
[1752913142858,0.21863404,118120.0,118110.0,0.50282325]
[1752913143067,0.21863404,118120.0,118110.0,0.51128964]
[1752913143242,0.21016808,118120.0,118110.0,0.51128964]
[1752913143453,0.21016808,118120.0,118110.0,0.51128928]
[1752913143674,0.19960226,118120.0,118110.0,0.52286517]
[1752913143880,0.19960226,118120.0,118110.0,0.50593274]
[1752913144101,0.01902397,118120.0,118110.0,0.51439899]
[1752913144317,0.19960226,118120.0,118110.0,0.52286517]
[1752913144778,0.19960226,118120.0,118110.0,0.51439899]
[1752913144987,0.19960226,118120.0,118110.0,0.52286517]
[1752913145423,0.20806751,118120.0,118110.0,0.53826517]
[1752913145644,0.21653333,118120.0,118110.0,0.53826517]
[1752913146052,0.01902354,118120.0,118110.0,0.55426517]
[1752913146261,0.20806751,118120.0,118110.0,0.55426517]
[1752913146689,0.21653333,118120.0,118110.0,0.51286642]
[1752913146909,0.20806751,118120.0,118110.0,0.54579892]
[1752913147499,0.21653326,118120.0,118110.0,0.54579892]
[1752913147913,0.21653326,118120.0,118110.0,0.52979892]
[1752913151780,0.21653326,118120.0,118110.0,0.52979899]
[1752913151990,0.21653326,118120.0,118110.0,0.53826517]
[1752913153663,0.01693286,118110.0,118100.0,0.31103332]
[1752913153824,0.58377311,118110.0,118100.0,0.5311836]
[1752913154676,0.22261653,118110.0,118100.0,0.5311836]
[1752913154831,0.40005482,118110.0,118100.0,0.5331536]
[1752913155025,0.20721653,118110.0,118100.0,0.5311436]
[1752913155326,0.38779482,118110.0,118100.0,0.58458896]
[1752913155519,0.40319482,118110.0,118100.0,0.58458896]
[1752913156557,0.22261653,118110.0,118100.0,0.58458896]
[1752913156760,0.40319482,118110.0,118100.0,0.58458896]
[1752913156970,0.22261653,118110.0,118100.0,0.58458896]
[1752913157187,0.40319482,118110.0,118100.0,0.58458896]
[1752913158983,0.4634479,118110.0,118100.0,0.58458896]
[1752913159193,0.22261653,118110.0,118100.0,0.58458896]
[1752913159409,0.4634479,118110.0,118100.0,0.58458896]
[1752913160940,0.22261653,118110.0,118100.0,0.58458896]
[1752913161154,0.4634479,118110.0,118100.0,0.58458896]